Cogmind - Beta 13 @@@ ROGUE MODE // 2024.03.01 @ 12:58:45 Player: Minty Result: Destroyed by G-50 Soldier with Heavy Laser Performance ------------- Evolutions (2) 1000 Regions Visited (5) 1000 Robots Destroyed (50) 250 Value Destroyed (1179) 1179 Prototype IDs (26) 520 Alien Tech Used (0) 0 Bonus (-778) -778 TOTAL SCORE: 3171 Bonus ------- High Alert Combat Kills 79 Aligned with FarCom 300 Friendly Fire -1157 Cogmind --------- Core Integrity 0/550 Matter 85/300 Energy 238/240 System Corruption 2% Temperature Cool (9) Movement Rolling (95) Ox1 Location -8/Materials Parts ------- > --- POWER (1) -------- Nuclear Core > --- PROPULSION (4) --- Light Treads Light Treads Wheel Wheel > --- UTILITY (4) ------ Improved Heat Sink Targeting Computer System Shield Trap Reconfigurator > --- WEAPON (2) ------- Ion Cannon Ion Cannon > --- INVENTORY (5) ---- Backup Power I Improved Signal Interpreter Improved Terrain Scanner Ion Cannon Peak State ------------ > --- POWER ------------ Light Ion Engine > --- PROPULSION ------- Wheel Compact Wheel > --- UTILITY ---------- Improved Heat Sink Small Storage Unit Experimental Sensor Array Cloak of Protection > --- WEAPON ----------- Spread Laser Rocket Launcher > --- INVENTORY -------- Reinforced Deuterium Engine Light Fission Core Improved Terrain Scanner Tractor Beam Trap Reconfigurator Heavy EM Pulse Gun [Rating: 30] Favorites ----------- Power Ion Engine Engine Ion Engine Power Core Nuclear Core Propulsion Compact Wheel Treads Light Treads Leg Aluminum Leg Wheel Compact Wheel Flight Unit Flight Unit Utility Small Storage Unit Device Improved Heat Sink Storage Small Storage Unit Processor Targeting Computer Hackware System Shield Weapon Spread Laser Energy Gun Spread Laser Energy Cannon Ion Cannon Ballistic Gun Light Assault Rifle Launcher Rocket Launcher Special Weapon Plasma Flamer Build | -11 -10 -10 -10 -9 -8 ------- Run | Yrd Mat Min Exi Min Mat Slots Evolved 4 | . . . . . 4 Power . | . . . . . . Propulsion 2 | . . . . . 2 Utility 2 | . . . . . 2 Weapon . | . . . . . . Parts Attached 59 | . 10 19 2 3 25 Power 8 | . 1 2 . 1 4 Engine 5 | . 1 2 . 1 1 Core 3 | . . . . . 3 Reactor . | . . . . . . Propulsion 20 | . 4 10 . . 6 Treads 2 | . . . . . 2 Leg 1 | . . 1 . . . Wheel 15 | . 4 7 . . 4 Hover . | . . . . . . Flight 2 | . . 2 . . . Utility 13 | . 2 3 . . 8 Device 9 | . 1 2 . . 6 Storage 1 | . . 1 . . . Processor 1 | . . . . . 1 Hackware 2 | . 1 . . . 1 Protection . | . . . . . . Artifact . | . . . . . . Weapon 18 | . 3 4 2 2 7 Energy Gun 10 | . 3 2 2 1 2 Energy Cannon 3 | . . . . . 3 Ballistic Gun . | . . . . . . Ballistic Cannon . | . . . . . . Launcher 3 | . . . . 1 2 Special Weapon 2 | . . 2 . . . Impact Weapon . | . . . . . . Slashing Weapon . | . . . . . . Piercing Weapon . | . . . . . . Special Melee Weapon . | . . . . . . Unidentified Prototypes 1 | . . . . . 1 Parts Lost 13 | . . 4 . . 9 Power . | . . . . . . Propulsion 6 | . . 2 . . 4 Utility 1 | . . 1 . . . Weapon 6 | . . 1 . . 5 Highest Loss Streak 4 | . . 3 . . 4 To Critical Strikes . | . . . . . . Average Slot Usage (%) 84 | . 91 86 100 100 62 Engine 10 | . 13 12 14 14 2 Core 1 | . . . . . 4 Treads 1 | . . . . . 3 Wheel 18 | . 22 13 28 28 9 Flight 2 | . . 6 . . . Device 12 | . 5 12 14 14 12 Storage 10 | . 14 10 14 14 3 Processor 1 | . . . . . 4 Hackware 3 | . 1 3 . . 8 Energy Gun 18 | . 21 24 28 19 5 Energy Cannon 1 | . . . . . 4 Launcher 2 | . . . . 8 3 Naked Turns . | . . . . . . Heaviest Build 28 | 11 15 17 17 18 28 Greatest Support 40 | 20 26 32 26 26 40 Greatest Overweight (x) 3 | . 3 3 . . 2 Average Overweight (x) . | . . . . . . Largest Inventory Capacity 8 | 8 8 8 8 8 8 Average Capacity 7 | 8 8 7 8 8 6 Most Carried 8 | 6 8 8 8 8 8 Average Carried 6 | 6 7 4 7 7 5 Final Capacity 8 | 8 8 8 8 8 5 Final Carried 8 | 6 8 7 8 8 4 Class Distribution -------------------- 59% | Scavenger-Mutant 40% | Mutant Dominant Class ---------------- Mutant | -10/Materials Scavenger-Mutant | -10/Mines Scavenger-Mutant | -10/Exiles Scavenger-Mutant | -9/Mines Mutant | -8/Materials Resources | -11 -10 -10 -10 -9 -8 ----------- Run | Yrd Mat Min Exi Min Mat Matter Collected 774 | 200 50 220 . 66 238 Remotely . | . . . . . . Salvage Created 1272 | . 116 385 . 162 609 Parts 91 | . 9 27 . 10 45 Haulers Intercepted 3 | . 2 . . . 1 Recyclers Shooed 2 | . . 1 . . 1 Parts Field Recycled . | . . . . . . Retrieved Matter . | . . . . . . Parts Self-Destructed . | . . . . . . Prevented . | . . . . . . Kills | -11 -10 -10 -10 -9 -8 ------- Run | Yrd Mat Min Exi Min Mat Combat Hostiles Destroyed 34 | . . 10 . 9 15 Guns 16 | . . 9 . 1 6 Cannons 2 | . . . . . 2 AOE 15 | . . . . 8 7 Classes Destroyed 13 | . 3 4 . 2 4 Worker 2 | . 1 1 . . . Builder 6 | . . . . 1 5 Tunneler 2 | . . 1 . 1 . Hauler 3 | . 2 . . . 1 Recycler 3 | . . 2 . 1 . Operator 1 | . 1 . . . . Watcher 4 | . . . . . 4 Swarmer 9 | . . 3 . 3 3 Grunt 14 | . . 7 . . 7 Duelist 1 | . . . . . 1 Sentry 3 | . . . . . 3 Hunter 1 | . . . . . 1 Assembled 6 | . . . . 6 . Best Kill Streak 12 | . 3 5 . 6 12 Combat Bots Only 6 | . . 3 . 6 6 Max Kills in Single Turn 7 | . 1 2 . 3 7 Gunslinging . | . . . . . . Exploded 3 | . . . . 3 1 Melee . | . . . . . . Uniques/NPCs Destroyed 1 | . . . . 1 . YI-UF0 (-9/Mines) Combat | -11 -10 -10 -10 -9 -8 -------- Run | Yrd Mat Min Exi Min Mat Hostile Shots Fired 183 | . . 35 . 12 136 Missed 55 | . . 8 . 4 43 Damage Taken 1816 | . . 326 . 130 1360 Core 637 | . . 43 . 41 553 Absorbed by Shields . | . . . . . . Core Remaining (%) 83 | 100 . . . 66 . Volleys Fired 127 | . 15 36 . 20 56 Largest 2 | . 2 2 . 2 2 Hottest 130 | . 130 130 . 130 125 Shots Fired 197 | . 30 54 . 34 79 Gun 144 | . 30 47 . 24 43 Cannon 23 | . . . . . 23 Launcher 23 | . . . . 10 13 Special 7 | . . 7 . . . Kinetic 12 | . 12 . . . . Thermal 151 | . 18 54 . 24 55 Explosive 23 | . . . . 10 13 Electromagnetic 11 | . . . . . 11 Robot Hit Streak 11 | . 8 10 . 11 9 Robot Miss Streak 6 | . 3 6 . 4 6 Penetration Max . | . . . . . . Secondary Targets 1 | . . 1 . . . Max Gunslinging Chain 1 | . . 1 . . . Shots Hit Robots 140 | . 19 50 . 23 48 Core Hits 169 | . 8 54 . 43 64 Critical Kills . | . . . . . . Critical Parts Destroyed . | . . . . . . Critical Strikes 3 | . 2 1 . . . Burn 3 | . 2 1 . . . Melee Attacks . | . . . . . . Impact . | . . . . . . Slashing . | . . . . . . Piercing . | . . . . . . Sneak Attacks . | . . . . . . Combat Hostiles . | . . . . . . Follow-up Attacks . | . . . . . . Damage Inflicted 3944 | . 229 664 . 859 2192 Guns 1645 | . 229 569 . 325 522 Cannons 183 | . . . . . 183 Explosions 2016 | . . . . 534 1482 Melee . | . . . . . . Ramming 5 | . . . . . 5 Kinetic 52 | . 52 . . . . Thermal 2544 | . 177 664 . 325 1378 Explosive 1235 | . . . . 534 701 Electromagnetic 108 | . . . . . 108 Impact . | . . . . . . Slashing . | . . . . . . Piercing . | . . . . . . Highest Corruption 2 | . . 2 2 2 2 Average Corruption 2 | . . 2 2 2 2 Corruption Purged . | . . . . . . Corruption Blocked . | . . . . . . Effects 5 | . . . 1 3 1 Matter Fused 1 | . . . 1 . . Energy Discharges 1 | . . . . 1 . Data Loss (minor) 2 | . . . . 1 1 Weapon Failures 1 | . . . . 1 . Overload Shots . | . . . . . . Overflow Damage 164 | . . . . 19 145 Projectiles . | . . . . . . Explosions 164 | . . . . 19 145 Melee . | . . . . . . Knockbacks . | . . . . . . Impact . | . . . . . . Kinetic . | . . . . . . Secondary . | . . . . . . Self-Inflicted Damage 65 | . . . . 63 2 Shots 2 | . . . . 2 . Rammed 2 | . . 1 . . 1 Targets Rammed 2 | . . 1 . . 1 Kicked . | . . . . . . Crushed . | . . . . . . Highest Temperature 263 | . 130 263 . 189 206 Average Temperature 82 | . 54 119 . 81 49 Received Heat Transfer 645 | . . 168 . . 477 Effects 1 | . . 1 . . . Interference 1 | . . 1 . . . Siege Activations . | . . . . . . Robots Corrupted . | . . . . . . Combat Hostiles . | . . . . . . Parts Fried . | . . . . . . Impact Corruptions . | . . . . . . Robots Melted 1 | . . 1 . . . Combat Hostiles 1 | . . 1 . . . Parts Melted 4 | . . 2 . . 2 Heat Transferred 3975 | . 605 1430 . 410 1530 Parts Sabotaged . | . . . . . . Parts Stolen . | . . . . . . Parts Stripped . | . . . . . . Power Chain Reactions 1 | . . . . . 1 Alert | -11 -10 -10 -10 -9 -8 ------- Run | Yrd Mat Min Exi Min Mat Peak Influence 626 | . 39 245 . 149 626 Initial 57 | . . 15 . . 57 Average 194 | . 18 160 . 75 389 Maximum Alert Level 2 | . . 1 . . 2 Low Security (%) 59 | 100 100 63 . 100 12 Level 1 23 | . . 36 . . 33 Level 2 17 | . . . . . 54 Level 3 . | . . . . . . Level 4 . | . . . . . . Level 5 . | . . . . . . High Security . | . . . . . . Max Security . | . . . . . . Squads Dispatched 2 | . 1 . . . 1 Investigation . | . . . . . . Extermination . | . . . . . . Reinforcement 2 | . 1 . . . 1 Assault . | . . . . . . Garrison . | . . . . . . Intercept . | . . . . . . Searches Triggered . | . . . . . . Construction Impeded . | . . . . . . Haulers Reinforced . | . . . . . . Active Scanning Responses . | . . . . . . Cargo Convoy Interrupts . | . . . . . . Stealth | -11 -10 -10 -10 -9 -8 --------- Run | Yrd Mat Min Exi Min Mat Distress Signals 3 | . . . . . 3 Communications Jammed . | . . . . . . Distress Signals . | . . . . . . Times Spotted 47 | . 2 9 . 13 23 Peak Tracking Total 7 | . 1 3 . 6 7 Tactical Retreats 1 | . . . . . 1 Traps | -11 -10 -10 -10 -9 -8 ------- Run | Yrd Mat Min Exi Min Mat Traps Triggered 2 | . 1 . . . 1 Indirectly . | . . . . . . Trap Hack Attempts . | . . . . . . Triggered . | . . . . . . Disarmed . | . . . . . . Reprogrammed . | . . . . . . Reused . | . . . . . . Traps Reconfigurated 1 | . . . . . 1 Traps Extracted . | . . . . . . Installed . | . . . . . . Triggered . | . . . . . . Machines | -11 -10 -10 -10 -9 -8 ---------- Run | Yrd Mat Min Exi Min Mat Machines Disabled 6 | . . . . . 6 Max in Single Turn 4 | . . . . . 4 Machines Repaired . | . . . . . . Machines Dismantled . | . . . . . . Machines Sabotaged . | . . . . . . Overloaded Fab Kills . | . . . . . . Hacking | -11 -10 -10 -10 -9 -8 --------- Run | Yrd Mat Min Exi Min Mat Machines Accessed 6 | . 2 . 2 . 2 Terminals 3 | . 2 . . . 1 Fabricators . | . . . . . . Repair Stations 1 | . . . . . 1 Recycling Units . | . . . . . . Scanalyzers . | . . . . . . Garrison Access . | . . . . . . Total Hacks 13 | . 5 . 2 . 6 Successful 8 | . 2 . 2 . 4 Failed 5 | . 3 . . . 2 Catastrophic 1 | . . . . . 1 Database Lockouts . | . . . . . . Manual 4 | . . . 1 . 3 Terminals 9 | . 5 . . . 4 Fabricators . | . . . . . . Repair Stations 2 | . . . . . 2 Recycling Units . | . . . . . . Scanalyzers . | . . . . . . Garrison Access . | . . . . . . Terminal Hacks 5 | . 2 . 2 . 1 Record 1 | . . . 1 . . Prototype ID Bank 1 | . 1 . . . . Terminal Index 1 | . 1 . . . . Alert Level 1 | . . . . . 1 Derelict Proto ID Bank 1 | . . . 1 . . Fabricator Hacks . | . . . . . . Repair Station Hacks 2 | . . . . . 2 Scan Component 1 | . . . . . 1 Repair 1 | . . . . . 1 Recycling Unit Hacks . | . . . . . . Scanalyzer . | . . . . . . Garrison Access Hacks . | . . . . . . Unauthorized Hacks 1 | . . . . . 1 Terminals 1 | . . . . . 1 Botnet 1 | . . . . . 1 Fabricators . | . . . . . . Repair Stations . | . . . . . . Recycling Units . | . . . . . . Scanalyzers . | . . . . . . Garrison Access . | . . . . . . Data Cores Recovered . | . . . . . . Used . | . . . . . . Hacking Detections 4 | . 2 . . . 2 Full Trace Events . | . . . . . . Feedback Events . | . . . . . . Feedback Blocked . | . . . . . . Robot Schematics Acquired . | . . . . . . Robots Built . | . . . . . . Authchips . | . . . . . . Time . | . . . . . . Total Robot Build Rating . | . . . . . . Part Schematics Acquired . | . . . . . . Parts Built . | . . . . . . Authchips . | . . . . . . Time . | . . . . . . Total Part Build Rating . | . . . . . . Parts Repaired . | . . . . . . Time 108 | . . . . . 108 Parts Recycled . | . . . . . . Recycled Matter . | . . . . . . Retrieved Matter . | . . . . . . Retrieved Components . | . . . . . . Parts Scanalyzed . | . . . . . . Part Schematics Acquired . | . . . . . . Parts Damaged . | . . . . . . Bothacking | -11 -10 -10 -10 -9 -8 ------------ Run | Yrd Mat Min Exi Min Mat Used RIF Installer . | . . . . . . Robots Hacked . | . . . . . . Non-combat . | . . . . . . Combat . | . . . . . . Robot Hacks Applied . | . . . . . . Relay Couplers Released . | . . . . . . Fabnet Peak Effective % . | . . . . . . Robots Rewired . | . . . . . . Allies Hacked . | . . . . . . Hacks Repelled . | . . . . . . Allies | -11 -10 -10 -10 -9 -8 -------- Run | Yrd Mat Min Exi Min Mat Total Allies 1 | . . 1 . . . Largest Group 1 | . . 1 1 . . Highest-Rated Group 31 | . . 31 31 . . Highest-Rated Ally 31 | . . 31 31 . . Total Orders . | . . . . . . Ally Attacks . | . . . . . . Total Damage . | . . . . . . Kills . | . . . . . . Allies Corrupted . | . . . . . . Allies Melted . | . . . . . . Intel | -11 -10 -10 -10 -9 -8 ------- Run | Yrd Mat Min Exi Min Mat Robot Analysis Total . | . . . . . . Derelict Logs Recovered 2 | . . 1 . 1 . Drone Launches . | . . . . . . Drone Recoveries . | . . . . . . Exploration | -11 -10 -10 -10 -9 -8 ------------- Run | Yrd Mat Min Exi Min Mat Turns Passed 1773 | 4 241 526 282 253 467 Spaces Moved 1408 | 4 179 414 304 212 295 Core 100 | . 1 1 . . 98 Treads 38 | . . . . . 38 Legs 43 | 4 33 6 . . . Wheels 1096 | . 145 276 304 212 159 Hover . | . . . . . . Flight 131 | . . 131 . . . Fastest Speed 37 | 120 90 37 90 90 50 Average Speed 89 | 120 96 86 90 90 89 Slowest Speed 280 | 120 200 280 90 90 160 Overloaded Moves . | . . . . . . Propulsion Burnouts . | . . . . . . Robots Hopped 1 | . . 1 . . . Cave-ins Triggered . | . . . . . . Exploration Rate (%) 44 | 1 26 77 60 75 30 Regions Visited 5 Branch Regions 3 Pre-discovered Areas 2 | . . . 1 1 . Known Exits Taken . | . . . . . . Unknown Exits Taken 5 | 1 1 1 1 1 . Scrap Searched 1 | . . . . 1 . Spaces Dug . | . . . . . . Terrain Destroyed 165 | . . . . 77 88 Melee . | . . . . . . Projectile 3 | . . . . . 3 AOE 162 | . . . . 77 85 Terrain Rammed . | . . . . . . Walls Destroyed . | . . . . . . Machines Disabled . | . . . . . . Actions | -11 -10 -10 -10 -9 -8 --------- Run | Yrd Mat Min Exi Min Mat Total 1720 | 3 221 524 312 240 420 Wait 58 | . 1 37 . . 20 Move 1401 | 3 178 411 303 211 295 Hop 1 | . . 1 . . . Pick Up 21 | . 8 2 4 2 5 Fast Attach 32 | . 5 10 . 1 16 Attach 10 | . . 4 . . 6 Detach 9 | . . 4 . . 5 Swap 17 | . 5 5 2 2 3 Drop 42 | . 9 13 3 4 13 Fire 127 | . 15 36 . 20 56 Melee . | . . . . . . Ram 2 | . . 1 . . 1 Kick . | . . . . . . Crush . | . . . . . . Escape Stasis . | . . . . . . Rewire . | . . . . . . Trap . | . . . . . . Miscellaneous . | . . . . . . Route ------- -11/Scrapyard -10/Materials -10/Mines (discovered 3 exits: *Mat x2 / *Exi) -10/Exiles -9/Mines -8/Materials History --------- Turn | Location | Event 1 | -11/Scrapyard | Discovered new exit (range 1) 5 | -11/Scrapyard | Entered Materials 241 | -10/Materials | Discovered new exit (range 6) 246 | -10/Materials | Entered Mines 274 | -10/Mines | Discovered new exit (range 7) 313 | -10/Mines | Build established: Mutant 332 | -10/Mines | A weapon hastily lodged in a ceiling crevice suddenly fell to the ground 409 | -10/Mines | Lost 3 parts (1n1u1w) 487 | -10/Mines | Identified exit to Materials 520 | -10/Mines | Escorted by a lone wolf Derelict 756 | -10/Mines | Deemed a non-threat by the Exiles lab entrance 756 | -10/Mines | Discovered new exit (range 5) 772 | -10/Mines | Entered Exiles 772 | -10/Exiles | Accompanied by 1 ally 787 | -10/Exiles | Build established: Scavenger-Mutant 800 | -10/Exiles | Met 8R-AWN 816 | -10/Exiles | Met EX-HEX 839 | -10/Exiles | Met EX-BIN 850 | -10/Exiles | Aligned with FarCom system 851 | -10/Exiles | Given EX-Vault access code 871 | -10/Exiles | Opened EX-Vault 883 | -10/Exiles | Found Cloak of Protection 888 | -10/Exiles | Found Trap Reconfigurator 906 | -10/Exiles | Warned to stay clear of 0b10 Research branches 1011 | -10/Exiles | Met EX-DEC 1015 | -10/Exiles | Learned location of Zion (-6) 1043 | -10/Exiles | Discovered new exit (range 10) 1054 | -10/Exiles | Stole two prototypes: Cloak of Protection, Trap Reconfigurator 1054 | -10/Exiles | Entered Mines 1056 | -9/Mines | YI-UF0 nonchalantly dropped a Grenade Launcher on the ground 1075 | -9/Mines | Murdered YI-UF0 1075 | -9/Mines | Destroyed YI-UF0 1128 | -9/Mines | Found a damaged Exp. Sensor Array with a note attached 1133 | -9/Mines | Found Prototype Device 1184 | -9/Mines | Assembled infested the area 1306 | -9/Mines | Discovered new exit (range 3) 1307 | -9/Mines | Entered Materials 1307 | -8/Materials | Evolved 4 slots: Propulsion x2, Utility x2 1308 | -8/Materials | Identified Exp. Sensor Array 1537 | -8/Materials | Lost 4 parts (2n2w) 1599 | -8/Materials | Core integrity fell below 50% 1621 | -8/Materials | Core integrity fell below 20% 1634 | -8/Materials | Lost 3 parts (1n2w) 1774 | -8/Materials | Destroyed by G-50 Soldier with Heavy Laser Last Messages --------------- 01728_ Acquired Wheel. 01730_ U-05 Engineer lays Concrete. 01731_ Acquired Wheel. 01732_ U-05 Engineer lays Concrete. 01733_ U-05 Engineer builds a Wall. 01733_ U-05 Engineer lays Concrete. 01738_ Proton Bomb Trap reprogrammed. 01744_ U-05 Engineer builds a Wall. 01745_ U-05 Engineer lays Concrete. 01746_ Acquired 4 matter. 01746_ Acquired 15 matter. 01750_ U-05 Engineer lays Concrete. 01750_ Slammed into W-25 Informer. 01750_ U-05 Engineer lays Concrete. 01758_ W-25 Informer destroyed. 01762_ U-05 Engineer builds a Wall. 01767_ U-05 Engineer lays Concrete. 01771_ U-05 Engineer builds a Wall. 01771_ U-05 Engineer lays Concrete. 01774_ Acquired 32 matter. Map ----- +----------------------------------------------------+ | ??????????????# """ # ## ???????? ????# | | ??????????????# """ # ## """ ????????????# | | ??????????????# ## # # """?????????????# | | ??????????????######## # # ""??????????????# | | ??????????????# # ### ???????????????? | | ??????????????# # # # #########??????????!=! | | ??????????????+ ## # ! = ##?????????=%* | | ??????????????# # # ] * #???????????? | | ??????????????# ## # ] == ##???????????? | | ???????????????# # # # ] * #????????????? | | ???????????????# # % + #????????????? | | ???????????????# | u # #????????????? | | ???????????????+ ## # #????????????? | | ???????????????# ## # #????????????? | | ???????????????#^ "### ##"#######????????????? | | ???????????????# #??#% "####??????????????????? | | ???????????????# #??#! ##?????????????????????? | | ??????????????? #??# #??????????????????????? | | ?????????????? #??# #??????????????????????? | | ????????????? #??# #??????????????????????? | | ????????????! ???# #??????????????????????? | | ???????????#! ???# #??????????????????????? | | ???????????##! #### #??????????????????????? | | ????????????#### #??????????????????????? | | ???????????????# !#??????????????????????? | | ???????????????# *@#??????????????????????? | | ???????????????+ !+??????????????????????? | | ???????????????# #??????????????????????? | | ???????????????# [[[ ??????????????????????? | | ???????????????# [[ ??????????????????????? | | ???????????????# [[ ??????????????????????? | | ???????????????# #??????????????????????? | | ???????????????# g #??????????????????????? | | ?????????Y?????# g###+####??????????????????????? | | ???????????????# g ??????????????????????????????? | | ???????????????# ???????????????????????????????? | | ???????????????# ????????????????????????????????? | | ?????????????????????????????????????????????????? | | ?????????????????????????????????????????????????? | | ?????????????????????????????????????????????????? | | ?????????????????????????????????????????????????? | | ?????????????????????????????????????????????????? | | ?????????????????????????????????????????????????? | | ?????????????????????????????????????????????????? | | ?????????????????????????????????????????????????? | | ?????????????????????????????????????????????????? | | ?????????????????????????????????????????????????? | | ?????????????????????????????????????????????????? | | ?????????????????????????????????????????????????? | | ?????????????????????????????????????????????????? | +----------------------------------------------------+ Best States ------------- Heat Dissipation 45 Energy Generation 14 Energy Capacity 250 Matter Stores 300 Matter Capacity 300 Sight Range 16 Terrain Scan Density 10 Cloak Strength 5 Evasion (%) 62 Targeting Accuracy 5 Recoil Reduction 2 Offensive Hacking 10 Defensive Hacking 10 Item Schematics ----------------- None Robot Schematics ------------------ None Fabricated ------------ Nothing Alien Tech Used ----------------- None Achievements -------------- None Challenges ------------ None Game ------ Seed IonAngularMantle Manual? 0 Play Time 00:14:09 Cumulative 682.4 hours Start 2024.03.01 @ 12:46:24 End 2024.03.01 @ 12:58:45 Sessions 1 Manual Loads 0 Difficulty Rogue Special Mode None Game No. 703 Rogue 428 Adventurer 123 Explorer 152 Win Type - Total 25 Types 19/0/4/1/0/0/0/1/0 Lore% 80 Gallery% 91 Achievement% 76 Wizard Run 0 Options --------- Layout 0 ASCII 0 Keyboard 1 Movement Numpad Keybinds 0 Fullscreen 2 Font 18/SmallcapsGlow Map View 76x50 Zoom Use 0% Tactical HUD 1 Map Filters NONE Filters NONE Steam 1 RUN: eaf0adcd-0efa-4f63-820b-e9a13127c856